bitfinex-derivatives/quotes_BTCF0:USTF0_20250830
["timestamp","ask_amount","ask_price","bid_price","bid_amount"]
[1756551646846,0.33631089,108540.0,108530.0,1.21469267]
[1756551651343,0.58150335,108540.0,108530.0,1.21471394]
[1756551652638,0.58150335,108540.0,108530.0,0.37983394]
[1756551652845,0.58150335,108540.0,108530.0,1.21471394]
[1756551654046,0.33631089,108540.0,108530.0,1.21471394]
[1756551654248,0.58150335,108540.0,108530.0,1.21471394]
[1756551654441,0.58150335,108540.0,108530.0,0.96952148]
[1756551654642,0.58150335,108540.0,108530.0,1.21471394]
[1756551655348,0.33631089,108540.0,108530.0,1.21471394]
[1756551655648,0.58150335,108540.0,108530.0,1.21471394]
[1756551656643,0.53215415,108540.0,108530.0,1.21471394]
[1756551657444,0.53215415,108540.0,108530.0,0.37983394]
[1756551657650,0.53215415,108540.0,108530.0,1.21467394]
[1756551658950,0.28696169,108540.0,108530.0,1.21467394]
[1756551659152,0.53215415,108540.0,108530.0,1.21467394]
[1756551659451,0.53215415,108540.0,108530.0,0.37983394]
[1756551659646,1.45420478,108540.0,108530.0,0.06652148]
[1756551659854,1.38814661,108540.0,108530.0,0.90136148]
[1756551660047,1.45420478,108540.0,108530.0,0.90136148]
[1756551660546,1.45420478,108540.0,108530.0,0.85431148]
[1756551660752,1.38814661,108540.0,108530.0,0.85431148]
[1756551661054,1.38814661,108540.0,108530.0,0.001]
[1756551661852,1.45426171,108540.0,108530.0,0.001]
[1756551663055,0.96387679,108540.0,108530.0,0.001]
[1756551663256,0.96387679,108540.0,108530.0,0.04687]
[1756551663458,1.45426171,108540.0,108530.0,0.04687]
[1756551665562,1.45426171,108540.0,108530.0,0.001]
[1756551665862,0.11307,108520.0,108510.0,0.70260872]
[1756551666160,0.81002818,108520.0,108510.0,0.94780118]
[1756551666759,0.76048672,108520.0,108510.0,0.31116118]
[1756551666955,0.76048672,108520.0,108510.0,1.14708118]
[1756551667160,0.81002818,108520.0,108510.0,1.14708118]
[1756551667962,0.81002818,108520.0,108510.0,1.15008118]
[1756551668161,1.05522064,108520.0,108510.0,1.15208118]
[1756551668361,1.00567918,108520.0,108510.0,1.15208118]
[1756551669364,0.76061945,108520.0,108510.0,0.90688872]
[1756551670266,0.86472345,108520.0,108510.0,0.90688872]
[1756551670465,0.61939826,108520.0,108510.0,0.90688872]
[1756551670665,0.86472345,108520.0,108510.0,0.90688872]
[1756551673171,0.84453522,108520.0,108510.0,0.90688872]
[1756551673465,0.86478004,108520.0,108510.0,0.90688872]
[1756551674574,0.50398004,108520.0,108510.0,0.90688872]
[1756551674773,0.86478004,108520.0,108510.0,0.90688872]
[1756551676473,0.61945485,108520.0,108510.0,0.90688872]
[1756551676774,0.86478004,108520.0,108510.0,0.90688872]
[1756551677572,0.86478004,108520.0,108510.0,1.15221391]
[1756551678377,0.86478004,108520.0,108510.0,0.90688872]
[1756551684576,0.86478004,108520.0,108510.0,0.07096872]
[1756551684782,0.86478004,108520.0,108510.0,0.90664872]
[1756551685576,0.9143215,108520.0,108510.0,0.90664872]
[1756551689373,0.9143215,108520.0,108510.0,1.15197391]
[1756551689698,0.30819631,108520.0,108510.0,1.15197391]
[1756551691379,0.55347775,108520.0,108510.0,1.15193016]
[1756551693182,0.86473629,108520.0,108510.0,1.15173016]
[1756551695180,0.86473629,108520.0,108510.0,0.31625016]
[1756551695382,0.86473629,108520.0,108510.0,1.15161016]
[1756551701286,0.84350026,108520.0,108510.0,1.15161016]
[1756551701486,0.86477421,108520.0,108510.0,1.15161016]
[1756551703382,0.93088931,108520.0,108510.0,1.15161016]
[1756551703597,0.86477421,108520.0,108510.0,1.15161016]
[1756551703895,0.84350026,108520.0,108510.0,1.15161016]
[1756551706885,0.86477338,108520.0,108510.0,1.15161016]
[1756551707087,0.91436705,108520.0,108510.0,1.15161016]
[1756551707487,0.89309393,108520.0,108510.0,1.15161016]
[1756551707687,0.91436649,108520.0,108510.0,1.15161016]
[1756551708985,0.91436649,108520.0,108510.0,0.90632872]
[1756551709182,0.91436649,108520.0,108510.0,1.15161016]
[1756551710791,0.89309393,108520.0,108510.0,1.15161016]
[1756551710991,0.9143659,108520.0,108510.0,1.15161016]
[1756551711301,0.9143659,108520.0,108510.0,0.07096872]
[1756551711588,1.11005367,108520.0,108510.0,1.15137016]
[1756551711789,0.86477223,108520.0,108510.0,1.15137016]
[1756551713190,0.91436285,108520.0,108510.0,1.15137016]
[1756551716092,0.91436285,108520.0,108510.0,0.31427144]
[1756551716294,0.91436285,108520.0,108510.0,1.14939144]
[1756551716795,0.86477223,108520.0,108510.0,1.14939144]
[1756551717489,0.69305595,108520.0,108510.0,1.14939144]
[1756551718895,0.74264656,108520.0,108510.0,1.14939144]
[1756551719596,0.81011656,108520.0,108510.0,1.14939144]
[1756551723501,0.74264656,108520.0,108510.0,1.14939144]
[1756551723706,0.78852656,108520.0,108510.0,0.90411]
[1756551723891,0.86018656,108520.0,108510.0,1.14939144]
[1756551726301,0.86018656,108520.0,108510.0,0.90411]
[1756551726598,0.86018656,108520.0,108510.0,1.14939144]
[1756551728398,1.105468,108520.0,108510.0,0.06899]
[1756551728598,1.105468,108520.0,108510.0,0.88072]
[1756551728802,1.105468,108520.0,108510.0,1.19437144]
[1756551731504,1.105468,108520.0,108510.0,0.94909]
[1756551731703,0.66764818,108520.0,108510.0,1.19437144]
[1756551731904,0.68841067,108520.0,108510.0,1.19437144]
[1756551733705,0.79251467,108520.0,108510.0,1.19437144]
[1756551734007,0.55855051,108520.0,108510.0,1.19437144]
[1756551734206,0.91935051,108520.0,108510.0,1.19437144]
[1756551736803,0.24160907,108520.0,108510.0,1.19437144]
[1756551737001,0.19572907,108520.0,108510.0,1.43965288]
[1756551737208,0.19572907,108520.0,108510.0,1.19437144]
[1756551737407,0.19572907,108520.0,108510.0,1.43965288]
[1756551737606,0.19572907,108520.0,108510.0,1.19437144]
[1756551738109,0.19572907,108520.0,108510.0,1.55517144]
[1756551744911,0.19572907,108520.0,108510.0,1.30989]
[1756551745113,0.19572907,108520.0,108510.0,1.55517144]
[1756551745319,0.48689051,108520.0,108510.0,0.11397]
[1756551745504,0.48689051,108520.0,108510.0,1.19797144]
[1756551745505,0.55855051,108520.0,108510.0,1.19797144]
[1756551745710,0.55855051,108520.0,108510.0,1.19793144]
[1756551746815,0.5089599,108520.0,108510.0,1.19793144]
[1756551748006,0.26367846,108520.0,108510.0,1.19793144]
[1756551748206,0.5089599,108520.0,108510.0,1.19793144]
[1756551749815,0.26367846,108520.0,108510.0,1.19793144]
[1756551750914,0.26367846,108520.0,108510.0,1.55873144]
[1756551752010,0.26367846,108520.0,108510.0,1.55853144]
[1756551752912,0.26367846,108520.0,108510.0,0.72005144]
[1756551753113,0.26367846,108520.0,108510.0,1.55845144]
[1756551753713,0.4372999,108520.0,108510.0,1.55845144]
[1756551754716,0.19201846,108520.0,108510.0,1.55845144]
[1756551755021,0.19201846,108520.0,108510.0,1.31317]
[1756551755318,0.26016846,108520.0,108510.0,1.55845144]
[1756551756518,0.5054499,108520.0,108510.0,1.55845144]
[1756551757019,0.55501478,108520.0,108510.0,1.55845144]
[1756551757317,0.30973334,108520.0,108510.0,1.55845144]
[1756551757512,0.55501478,108520.0,108510.0,1.55845144]
[1756551760117,0.46559281,108520.0,108510.0,1.55845144]
[1756551760325,0.48683148,108520.0,108510.0,1.55845144]
[1756551760820,0.24155004,108520.0,108510.0,1.55845144]
[1756551767221,0.48683148,108520.0,108510.0,1.55845144]
[1756551767416,0.24155004,108520.0,108510.0,1.55845144]
[1756551767619,0.19567004,108520.0,108510.0,1.55845144]
[1756551768625,0.14610516,108520.0,108510.0,1.55845144]
[1756551770124,0.19568662,108520.0,108510.0,1.55845144]
[1756551771328,0.19568662,108520.0,108510.0,1.31317]
[1756551771515,0.19568662,108520.0,108510.0,1.55845144]
[1756551771920,0.44096806,108520.0,108510.0,1.55845144]
[1756551772928,0.19568662,108520.0,108510.0,1.55845144]
[1756551775228,0.19568662,108520.0,108510.0,1.31317]
[1756551775428,0.50911806,108520.0,108510.0,1.31317]
[1756551775623,0.50911806,108520.0,108510.0,1.55845144]
[1756551784934,0.50911806,108520.0,108510.0,1.31317]
[1756551785126,0.50911806,108520.0,108510.0,1.55845144]
[1756551785430,0.55404806,108520.0,108510.0,0.72005144]
[1756551785634,0.7993295,108520.0,108510.0,1.19673144]
[1756551785932,0.55404806,108520.0,108510.0,1.19673144]
[1756551786930,0.5044666,108520.0,108510.0,1.55753144]
[1756551788137,0.25918516,108520.0,108510.0,1.55753144]
[1756551788337,0.5044666,108520.0,108510.0,1.55753144]
[1756551791142,0.5044666,108520.0,108510.0,0.47477]
[1756551791341,0.5705915,108520.0,108510.0,1.31201]
[1756551791539,0.5705915,108520.0,108510.0,1.55729144]
[1756551792449,0.5715915,108520.0,108510.0,1.55529144]
[1756551793243,0.5715915,108520.0,108510.0,1.55229144]
[1756551793445,0.5725915,108520.0,108510.0,1.55229144]
[1756551795145,0.32731006,108520.0,108510.0,1.55229144]
[1756551795347,0.5725915,108520.0,108510.0,1.55229144]
[1756551796745,0.55604885,108520.0,108510.0,1.55229144]
[1756551800254,0.55604885,108520.0,108510.0,1.30701]
[1756551800460,0.55604885,108520.0,108510.0,1.55229144]
[1756551803062,0.31076741,108520.0,108510.0,1.55229144]
[1756551803260,0.55604885,108520.0,108510.0,1.55229144]
[1756551804663,0.55604885,108520.0,108510.0,1.30701]
[1756551804965,0.55604885,108520.0,108510.0,1.55229144]
[1756551805462,0.55604885,108520.0,108510.0,0.71505144]
[1756551805665,0.55604885,108520.0,108510.0,1.19085144]
[1756551806063,0.91684885,108520.0,108510.0,1.19085144]
[1756551810169,0.91684885,108520.0,108510.0,0.35425144]
[1756551810369,1.41213029,108520.0,108490.0,0.64821021]
[1756551810575,0.52063225,108510.0,108500.0,0.87354]
[1756551810772,0.54187092,108510.0,108500.0,0.87354]
[1756551811772,0.78715236,108510.0,108500.0,1.11882144]
[1756551812370,0.78715236,108510.0,108500.0,1.14305144]
[1756551815374,0.89125636,108510.0,108500.0,0.89777]
[1756551815575,0.89125636,108510.0,108500.0,1.14305144]
[1756551816576,0.89225636,108510.0,108500.0,1.14305144]
[1756551817274,0.89325636,108510.0,108500.0,1.14305144]
[1756551817677,0.89325636,108510.0,108500.0,0.89777]
[1756551817866,0.89325636,108510.0,108500.0,1.14305144]
[1756551821781,0.89325636,108510.0,108500.0,0.89777]
[1756551822080,0.89325636,108510.0,108500.0,1.14305144]
[1756551824079,0.89325636,108510.0,108500.0,1.38833288]
[1756551824080,0.58265492,108510.0,108500.0,1.38833288]
[1756551824279,0.46713636,108510.0,108500.0,1.74913288]
[1756551824984,0.53377636,108510.0,108500.0,1.74913288]
[1756551825680,0.48419411,108510.0,108500.0,1.74913288]
[1756551828084,0.48419411,108510.0,108500.0,1.25857]
[1756551828279,0.48419411,108510.0,108500.0,1.74913288]
[1756551828678,0.23891267,108510.0,108500.0,1.74913288]
[1756551828884,0.48419411,108510.0,108500.0,1.74913288]
[1756551829583,0.48419411,108510.0,108500.0,1.50385144]
[1756551830785,0.48419411,108510.0,108500.0,1.25857]
[1756551830986,0.48419411,108510.0,108500.0,1.50385144]
[1756551831284,0.48419411,108510.0,108500.0,1.25857]
[1756551831484,0.48419411,108510.0,108500.0,1.50385144]
[1756551831679,0.17227267,108510.0,108500.0,1.74913288]
[1756551831886,0.12734267,108510.0,108500.0,1.74913288]
[1756551834187,0.12734267,108510.0,108500.0,1.25857]
[1756551834380,0.12734267,108510.0,108500.0,1.74913288]
[1756551839190,0.106104,108510.0,108500.0,1.74913288]
[1756551839391,0.12733959,108510.0,108500.0,1.74913288]
[1756551840886,0.12733959,108510.0,108500.0,1.25857]
[1756551841093,0.12733959,108510.0,108500.0,1.74913288]
[1756551841593,0.28488184,108510.0,108500.0,0.91269288]
[1756551841785,0.53016328,108510.0,108500.0,0.91269288]
[1756551841986,0.48058103,108510.0,108500.0,1.38809288]
[1756551844195,0.23529959,108510.0,108500.0,1.38809288]
[1756551844398,0.41777103,108510.0,108500.0,1.38809288]
[1756551844695,0.48058103,108510.0,108500.0,1.38809288]
[1756551845099,0.23529959,108510.0,108500.0,1.38809288]
[1756551845299,0.48058103,108510.0,108500.0,1.38809288]
[1756551846097,0.48058103,108510.0,108500.0,0.55189288]
[1756551846295,0.48058103,108510.0,108500.0,1.38789288]
[1756551846696,0.23529959,108510.0,108500.0,1.38789288]
[1756551846897,0.53014926,108510.0,108500.0,1.38789288]
[1756551847698,0.34965399,108510.0,108500.0,1.38789288]
[1756551849496,0.10437255,108510.0,108500.0,1.38789288]
[1756551849897,0.20847655,108510.0,108500.0,1.38789288]
[1756551852595,0.25362655,108510.0,108500.0,0.55189288]
[1756551852900,0.25362655,108510.0,108500.0,1.38777288]
[1756551854196,0.27442405,108510.0,108500.0,1.38777288]
[1756551856299,0.21961973,108510.0,108500.0,1.38777288]
[1756551861506,0.28242973,108510.0,108500.0,0.55189288]
[1756551861704,0.28242973,108510.0,108500.0,1.38773288]
[1756551863407,0.52771117,108510.0,108500.0,1.38773288]
[1756551863708,0.52771117,108510.0,108500.0,0.55189288]
[1756551863906,0.52771117,108510.0,108500.0,1.38773288]
[1756551865331,0.52771117,108510.0,108500.0,0.89717]
[1756551865506,0.52771117,108510.0,108500.0,1.38773288]
[1756551867501,0.28242973,108510.0,108500.0,1.38773288]
[1756551867700,0.52771117,108510.0,108500.0,0.55189288]
[1756551867896,0.52771117,108510.0,108500.0,1.38773288]
[1756551870705,0.52771117,108510.0,108500.0,0.55189288]
[1756551871010,0.52771117,108510.0,108500.0,1.38773288]
[1756551871613,0.52771117,108510.0,108500.0,0.89717]
[1756551871910,0.52771117,108510.0,108500.0,1.38773288]
[1756551875112,0.52771117,108510.0,108500.0,0.06133]
[1756551875311,0.52771117,108510.0,108500.0,1.38769288]
[1756551877215,0.47814294,108510.0,108500.0,1.38769288]
[1756551877415,0.47814294,108510.0,108500.0,0.55189288]
[1756551877615,0.47814294,108510.0,108500.0,1.38769288]
[1756551879012,0.47814294,108510.0,108500.0,1.14241144]
[1756551879214,0.2328615,108510.0,108500.0,1.14241144]
[1756551879414,0.47814294,108510.0,108500.0,1.14241144]
[1756551880412,0.47814294,108510.0,108500.0,1.38769288]
[1756551881119,0.52772465,108510.0,108500.0,1.38769288]
[1756551882816,0.52772465,108510.0,108500.0,0.89713]
[1756551883011,0.52772465,108510.0,108500.0,1.38769288]
[1756551884623,0.52772465,108510.0,108500.0,0.55189288]
[1756551884824,0.52772465,108510.0,108500.0,1.38769288]
[1756551890532,0.28244321,108510.0,108500.0,1.38769288]
[1756551890731,0.52772465,108510.0,108500.0,1.38769288]
[1756551892735,0.52772465,108510.0,108500.0,0.55189288]
[1756551892935,0.47814294,108510.0,108500.0,1.38765288]
[1756551895735,0.2328615,108510.0,108500.0,1.38765288]
[1756551896035,0.47814294,108510.0,108500.0,1.38765288]
[1756551897440,0.2328615,108510.0,108500.0,1.38765288]
[1756551897836,0.47814294,108510.0,108500.0,0.89709]
[1756551898036,0.47814294,108510.0,108500.0,1.38765288]
[1756551898234,0.52772465,108510.0,108500.0,1.38765288]
[1756551900440,0.28244321,108510.0,108500.0,1.38765288]
[1756551900641,0.17448321,108510.0,108500.0,1.38765288]
[1756551904037,0.21845321,108510.0,108500.0,1.38765288]
[1756551904640,0.28340321,108510.0,108500.0,1.38765288]
[1756551906342,0.21845321,108510.0,108500.0,1.38765288]
[1756551908645,0.21845321,108510.0,108500.0,0.89709]
[1756551908945,0.21845321,108510.0,108500.0,1.38765288]
[1756551911654,0.17448321,108510.0,108500.0,1.38765288]
[1756551920056,0.19566391,108510.0,108500.0,1.38765288]
[1756551924060,0.23963391,108510.0,108500.0,1.38765288]
[1756551926865,0.1900522,108510.0,108500.0,1.38765288]
[1756551936478,0.1900522,108510.0,108500.0,1.40657003]
[1756551936877,0.23964234,108510.0,108500.0,1.40657003]
[1756551940978,0.23964234,108510.0,108500.0,1.76737003]
[1756551943878,0.04505595,108510.0,108500.0,1.40657003]
[1756551944078,0.04505595,108510.0,108500.0,1.76737003]
[1756551945977,0.14915995,108510.0,108500.0,1.76737003]
[1756551949582,0.104104,108510.0,108500.0,1.76737003]
[1756551951883,0.104104,108510.0,108500.0,1.76837003]
[1756551952986,0.104104,108510.0,108500.0,1.76937003]
[1756551953284,0.104104,108510.0,108500.0,1.76837003]
[1756551954586,0.105104,108510.0,108500.0,1.76737003]
[1756551956185,0.105104,108510.0,108500.0,1.76837003]
[1756551958488,0.105104,108510.0,108500.0,1.76737003]
[1756551959082,0.104104,108510.0,108500.0,1.76737003]
[1756551959388,0.104104,108510.0,108500.0,1.76937003]
[1756551963993,0.15369174,108510.0,108500.0,1.76937003]
[1756551964188,0.15369174,108510.0,108500.0,2.48152783]
[1756551964394,0.02041695,108520.0,108510.0,0.02652]
[1756551964687,0.02041695,108520.0,108510.0,2.14519218]
[1756551964688,0.02106134,108520.0,108510.0,2.14519218]
[1756551964995,0.02106134,108530.0,108510.0,2.14519218]
[1756551965192,0.24836615,108540.0,108520.0,0.85136288]
[1756551965390,0.24836615,108540.0,108530.0,1.08064144]
[1756551966494,0.24936615,108540.0,108530.0,1.08064144]
[1756551966791,0.25036615,108540.0,108530.0,1.08064144]
[1756551968387,0.24936615,108540.0,108530.0,0.24528144]
[1756551968687,0.24936615,108540.0,108530.0,1.08056144]
[1756551968896,0.24936615,108540.0,108520.0,0.37975022]
[1756551969096,0.24936615,108540.0,108530.0,1.08056144]
[1756551970196,0.49464759,108540.0,108530.0,1.08056144]
[1756551974796,0.24936615,108540.0,108530.0,1.08056144]
[1756551974996,0.07410726,108540.0,108530.0,1.13868144]
[1756551975290,0.09497815,108540.0,108530.0,1.13868144]
[1756551976596,0.11385236,108540.0,108530.0,1.13868144]
[1756551982515,0.11385236,108540.0,108530.0,1.49948144]
[1756551983304,0.10519644,108540.0,108530.0,1.49948144]
[1756551984705,0.10519644,108540.0,108530.0,1.50048144]
[1756551984909,0.17197644,108540.0,108530.0,1.50048144]
[1756551985306,0.17097644,108540.0,108530.0,1.50048144]
[1756551985906,0.17097644,108540.0,108530.0,1.49948144]
[1756551986103,0.17197644,108540.0,108530.0,1.49948144]
[1756551986302,0.41725788,108540.0,108530.0,1.49948144]
[1756551990311,0.17197644,108540.0,108530.0,1.49948144]
[1756551992518,0.41725788,108540.0,108530.0,1.49948144]
[1756551997016,0.41725788,108540.0,108530.0,1.13868144]
[1756551997217,0.41725788,108540.0,108530.0,1.49948144]
[1756551997617,0.41725788,108540.0,108530.0,1.54345144]
[1756552000017,0.41725788,108540.0,108530.0,1.18265144]
[1756552000221,0.22403251,108540.0,108530.0,1.54345144]
[1756552000423,0.24457265,108540.0,108530.0,1.54345144]
[1756552004327,0.26118616,108540.0,108530.0,1.54345144]
[1756552010329,0.03715365,108540.0,108530.0,1.54345144]
[1756552012927,0.08676317,108540.0,108530.0,1.54345144]
[1756552019856,0.03715365,108540.0,108530.0,1.54345144]
[1756552020450,0.03715365,108540.0,108530.0,1.78873288]
[1756552020651,0.01661351,108540.0,108530.0,1.78873288]
[1756552020954,0.04958718,108540.0,108530.0,2.03873288]
[1756552022153,0.0661249,108550.0,108530.0,2.45274528]
[1756552022358,0.02061469,108550.0,108540.0,0.95861288]
[1756552022549,0.02061469,108550.0,108540.0,0.97745707]
[1756552023860,0.03733082,108550.0,108540.0,0.97745707]
[1756552025252,0.03933082,108550.0,108540.0,0.97745707]
[1756552025756,0.04033082,108550.0,108540.0,0.97745707]
[1756552033259,0.04033082,108550.0,108540.0,1.06958107]
[1756552034758,0.04033082,108550.0,108540.0,0.97745707]
[1756552036760,0.03933082,108550.0,108540.0,0.97745707]
[1756552037862,0.03733082,108550.0,108540.0,0.97745707]
[1756552041273,0.03733082,108550.0,108540.0,0.97845707]
[1756552041458,0.03733082,108550.0,108540.0,0.97945707]
[1756552053683,0.03733082,108550.0,108540.0,0.61865707]
[1756552053896,0.03733082,108550.0,108540.0,1.34025707]
[1756552064893,0.07960082,108550.0,108540.0,2.17473707]
[1756552070384,0.40632544,108560.0,108550.0,0.06216]
[1756552070585,0.40632544,108560.0,108550.0,0.71214144]
[1756552070994,0.35683321,108560.0,108550.0,1.54658144]
[1756552071801,0.40632544,108560.0,108550.0,1.54658144]
[1756552072594,0.35683321,108560.0,108550.0,1.54658144]
[1756552073196,0.37208529,108560.0,108550.0,1.54658144]
[1756552075496,0.42157752,108560.0,108550.0,1.54658144]
[1756552079806,0.36012752,108560.0,108550.0,1.54658144]
[1756552080306,0.42084752,108560.0,108550.0,0.71214144]
[1756552080507,0.42084752,108560.0,108550.0,1.54654144]
[1756552082208,0.18836973,108560.0,108550.0,1.54654144]
[1756552082411,0.20860438,108560.0,108550.0,1.54654144]
[1756552085406,0.10561438,108560.0,108550.0,1.54654144]
[1756552085611,0.10561438,108560.0,108550.0,1.79182288]
[1756552085810,0.10561438,108560.0,108550.0,1.54654144]
[1756552090111,0.10561438,108560.0,108550.0,1.79174288]
[1756552090620,0.10561438,108560.0,108550.0,1.54646144]
[1756552094015,0.10561438,108560.0,108550.0,1.18566144]
[1756552094221,0.10561438,108560.0,108550.0,1.54646144]
[1756552099417,0.10561438,108560.0,108550.0,1.79174288]
[1756552101320,0.10561438,108560.0,108550.0,0.46686]
[1756552101522,0.10561438,108560.0,108550.0,1.54642144]
[1756552101722,0.14973438,108560.0,108550.0,0.94034]
[1756552101921,0.14973438,108560.0,108550.0,1.18562144]
[1756552104427,0.14973438,108560.0,108550.0,1.18630144]
[1756552107323,0.14973438,108560.0,108550.0,1.18618144]
[1756552108832,0.14973438,108560.0,108550.0,0.35134144]
[1756552109033,0.14973438,108560.0,108550.0,1.18614144]
[1756552109832,0.14973438,108560.0,108550.0,0.35134144]
[1756552110038,0.14973438,108560.0,108550.0,1.18606144]
[1756552111035,0.14973438,108560.0,108550.0,0.35134144]
[1756552111236,0.14973438,108560.0,108550.0,1.18602144]
[1756552116140,0.10561438,108560.0,108550.0,1.18602144]
[1756552116737,0.10561438,108560.0,108550.0,1.43130288]
[1756552117637,0.10561438,108560.0,108550.0,1.79210288]
[1756552121441,0.10561438,108560.0,108550.0,1.43130288]
[1756552121639,0.10561438,108560.0,108550.0,1.79210288]
[1756552132555,0.10561438,108560.0,108550.0,1.79174288]
[1756552140454,0.21983617,108570.0,108550.0,1.72958288]
[1756552140650,0.30219962,108570.0,108560.0,0.59324288]
[1756552140953,0.30219962,108570.0,108560.0,0.61218514]
[1756552141352,0.30219962,108570.0,108560.0,1.44646514]
[1756552142558,0.34749962,108570.0,108560.0,1.44646514]
[1756552142758,0.12766345,108570.0,108560.0,1.44646514]
[1756552142958,0.37294489,108570.0,108560.0,1.44646514]
[1756552143357,0.40097936,108570.0,108560.0,1.44646514]
[1756552143558,0.15769792,108570.0,108560.0,1.44646514]
[1756552143757,0.40397936,108570.0,108560.0,1.44646514]
[1756552145559,0.40397936,108570.0,108560.0,1.45939514]
[1756552146559,0.40397936,108570.0,108560.0,0.96883226]
[1756552146763,0.40397936,108570.0,108560.0,1.45939514]
[1756552150164,0.38380805,108570.0,108560.0,1.45939514]
[1756552152459,0.40356103,108570.0,108560.0,0.62511514]
[1756552152659,0.40356103,108570.0,108560.0,1.45939514]
[1756552155269,0.46968593,108570.0,108560.0,1.45939514]
[1756552156267,0.40356103,108570.0,108560.0,1.45939514]
[1756552160371,0.35826103,108570.0,108560.0,1.45939514]
[1756552166377,0.11297959,108570.0,108560.0,1.45939514]
[1756552166678,0.35826103,108570.0,108560.0,1.45939514]
[1756552175186,0.11297959,108570.0,108560.0,1.45939514]
[1756552177791,0.35826103,108570.0,108560.0,1.45939514]
[1756552178492,0.11297959,108570.0,108560.0,1.45939514]
[1756552180494,0.16258163,108570.0,108560.0,1.45939514]
[1756552180996,0.12074163,108570.0,108560.0,1.45939514]
[1756552181291,0.62672826,108590.0,108580.0,0.043]
[1756552181495,0.62672826,108590.0,108580.0,1.44783862]
[1756552181496,0.66641826,108590.0,108580.0,1.44783862]
[1756552181691,0.66641826,108590.0,108580.0,1.20255718]
[1756552181994,0.73049826,108590.0,108580.0,1.20255718]
[1756552182602,0.73349826,108590.0,108580.0,1.20255718]
[1756552182795,0.73649826,108590.0,108580.0,1.20255718]
[1756552183199,0.78146999,108590.0,108580.0,1.20255718]
[1756552183887,0.05097173,108590.0,108580.0,1.31807574]
[1756552184191,0.05097173,108590.0,108580.0,1.80863862]
[1756552186699,0.05097173,108590.0,108580.0,2.05863862]
[1756552187597,0.05097173,108590.0,108580.0,2.13284743]
[1756552189899,0.05097173,108590.0,108580.0,1.29864743]
[1756552190107,0.05097173,108590.0,108580.0,2.14332743]
[1756552190900,0.05097173,108590.0,108580.0,0.80808455]
[1756552190901,0.09066173,108590.0,108580.0,0.80808455]
[1756552191091,0.09066173,108590.0,108580.0,2.14332743]
[1756552192193,0.09066173,108590.0,108580.0,2.14328743]
[1756552193302,0.11105414,108590.0,108580.0,2.14328743]
[1756552195602,0.11105414,108590.0,108580.0,1.29864743]
[1756552195805,0.11105414,108590.0,108580.0,2.14324743]
[1756552199208,0.11105414,108590.0,108580.0,1.89324743]
[1756552202111,0.16049057,108590.0,108580.0,1.89324743]
[1756552202317,0.11105414,108590.0,108580.0,1.89284743]
[1756552203212,0.17089414,108590.0,108580.0,1.04864743]
[1756552203417,0.77697558,108590.0,108580.0,1.26799025]
[1756552203713,0.82641201,108590.0,108580.0,0.9485]
[1756552204017,0.77697558,108590.0,108580.0,1.19378144]
[1756552204719,1.02697558,108590.0,108580.0,1.19378144]
[1756552206422,0.78169414,108590.0,108580.0,1.19378144]
[1756552206624,1.02697558,108590.0,108580.0,1.19378144]
[1756552207035,1.07644713,108590.0,108580.0,1.19378144]
[1756552208323,1.02697558,108590.0,108580.0,1.19378144]
[1756552209028,0.78169414,108590.0,108580.0,1.19378144]
[1756552209214,1.07644713,108590.0,108580.0,1.19378144]
[1756552218530,1.07576953,108590.0,108580.0,1.19378144]
[1756552219028,0.83048809,108590.0,108580.0,1.19378144]
[1756552219226,1.07576953,108590.0,108580.0,1.19378144]
[1756552223734,1.07576953,108590.0,108580.0,0.9485]
[1756552223936,1.02629798,108590.0,108580.0,0.9485]
[1756552224136,0.78101654,108590.0,108580.0,1.19378144]
[1756552224435,1.02629798,108590.0,108580.0,1.19378144]
[1756552225035,0.78101654,108590.0,108580.0,1.19378144]
[1756552225333,1.02629798,108590.0,108580.0,1.19378144]
[1756552226434,0.78101654,108590.0,108580.0,1.19378144]
[1756552226635,1.02629798,108590.0,108580.0,1.19378144]
[1756552227732,0.66549798,108590.0,108580.0,1.19378144]
[1756552227937,1.02629798,108590.0,108580.0,1.19378144]
[1756552233441,1.02629798,108590.0,108580.0,1.43906288]
[1756552234442,0.78101654,108590.0,108580.0,1.43906288]
[1756552234633,0.58469652,108590.0,108580.0,1.43906288]
[1756552236044,0.58669652,108590.0,108580.0,1.43906288]
[1756552236546,0.62561652,108590.0,108580.0,0.9485]
[1756552236742,0.62561652,108590.0,108580.0,1.43906288]
[1756552236941,0.69174142,108590.0,108580.0,1.43906288]
[1756552237145,0.7383884,108590.0,108580.0,1.43906288]
[1756552238049,0.3386684,108590.0,108580.0,1.79986288]
[1756552238343,0.06836179,108590.0,108580.0,2.09568117]
[1756552239445,0.06736179,108590.0,108580.0,2.09568117]
[1756552239742,0.0870435,108600.0,108580.0,2.72832052]
[1756552239943,0.4470533,108610.0,108590.0,0.24528144]
[1756552240143,0.4859733,108610.0,108600.0,0.93072829]
[1756552240561,0.5432633,108610.0,108600.0,0.98862829]
[1756552241144,0.59029784,108610.0,108600.0,1.47919117]
[1756552241745,0.20936944,108610.0,108600.0,1.47919117]
[1756552241945,0.22998217,108610.0,108600.0,1.47919117]
[1756552242145,0.16385727,108610.0,108600.0,1.47919117]
[1756552243347,0.10656727,108610.0,108600.0,1.47919117]
[1756552243944,0.16385727,108610.0,108600.0,1.47919117]
[1756552244344,0.16385727,108610.0,108600.0,1.83999117]
[1756552244746,0.10656727,108610.0,108600.0,1.83999117]
[1756552246850,0.10656727,108610.0,108600.0,1.85290117]
[1756552247843,0.06764727,108610.0,108600.0,1.85290117]
[1756552250344,0.06764727,108610.0,108600.0,1.00802117]
[1756552250551,0.06764727,108610.0,108600.0,2.09862261]
[1756552250754,0.06764727,108610.0,108600.0,1.85334117]
[1756552252359,0.08733136,108610.0,108600.0,1.85334117]
[1756552257165,0.08733136,108610.0,108600.0,2.09862261]
[1756552257766,0.08733136,108610.0,108600.0,1.85334117]
[1756552258266,0.08733136,108610.0,108600.0,1.87334117]
[1756552258467,0.08733136,108610.0,108600.0,1.85334117]
[1756552258670,0.08733136,108610.0,108600.0,2.11862261]
[1756552259263,0.08733136,108610.0,108600.0,2.05280432]
[1756552259469,0.08733136,108610.0,108600.0,2.07280432]
[1756552259669,0.08733136,108610.0,108600.0,1.82752288]
[1756552259970,0.08733136,108610.0,108600.0,1.80752288]
[1756552260263,0.08733136,108610.0,108600.0,2.06752288]
[1756552260774,0.08733136,108610.0,108600.0,2.35862261]
[1756552260958,0.08733136,108610.0,108600.0,2.60862261]
[1756552261266,0.08733136,108610.0,108600.0,2.70069631]
[1756552262270,0.08733136,108610.0,108600.0,2.46069631]
[1756552265470,0.08733136,108610.0,108600.0,2.79069631]
[1756552269280,0.08733136,108610.0,108600.0,1.20953199]
[1756552269576,0.08733136,108610.0,108600.0,2.79057631]
[1756552270174,0.19424136,108610.0,108600.0,2.34834261]
[1756552270478,0.08733136,108610.0,108600.0,2.34834261]
[1756552270977,0.06213467,108610.0,108600.0,1.50330261]
[1756552271184,0.06213467,108610.0,108600.0,2.34854261]